Cogmind - Beta 17.1 @@@ ROGUE MODE // 2026.09.15 @ 08:04:45 Player: eph7ra Result: Destroyed by L-41 Fighter with Axe Performance ------------- Evolutions (3) 1500 Regions Visited (6) 1200 Robots Destroyed (95) 475 Value Destroyed (3087) 3087 Prototype IDs (0) 0 Alien Tech Used (0) 0 Bonus (735) 735 TOTAL SCORE: 6997 Bonus ------- High Alert Combat Kills 35 Entered Garrisons 200 Used RIF Installer 500 Cogmind --------- Core Integrity 0/700 Matter 138/300 Energy 100/100 System Corruption 1% Temperature Cool (9) Movement Core (1350) Ox26 Location -7/Factory Parts ------- > --- POWER (1) -------- (None) > --- PROPULSION (3) --- (None) > --- UTILITY (6) ------ Huge Storage Unit Improved Targeting Computer > --- WEAPON (3) ------- (None) > --- INVENTORY (25) --- Light Nuclear Core Light Nuclear Core Micro Nuclear Core Cooled Airjet Cooled Airjet Improved Heat Sink Small Storage Unit Terrain Scanner Advanced Targeting Computer Core Analyzer Core Analyzer Core Analyzer System Shield Mini Grenade Launcher Remote Datajack Heavy Mace Peak State ------------ > --- POWER ------------ Improved Deuterium Engine > --- PROPULSION ------- Advanced Treads Carbon-fiber Leg Carbon-fiber Leg > --- UTILITY ---------- Huge Storage Unit Improved Targeting Computer Core Analyzer Core Shielding Improved Light Armor Plating Relay Coupler [NC] > --- WEAPON ----------- Gauss Rifle Flak Gun Flak Gun > --- INVENTORY -------- Improved Ion Engine Light Nuclear Core Light Nuclear Core Improved Deuterium Engine Improved Deuterium Engine Micro Nuclear Core Improved Heat Sink Small Storage Unit Terrain Scanner Advanced Targeting Computer Core Analyzer Core Analyzer Core Analyzer Gatling Laser Mini Grenade Launcher Mini Grenade Launcher Datajack Remote Datajack [Rating: 42] Favorites ----------- Power Light Ion Engine Engine Light Ion Engine Power Core Micro Nuclear Core Propulsion Light Treads Treads Light Treads Leg Aluminum Leg Wheel Wheel Utility Huge Storage Unit Storage Huge Storage Unit Processor Core Analyzer Hackware Relay Coupler [NC] Protection Core Shielding Weapon Light Assault Rifle Energy Gun Medium Laser Ballistic Gun Light Assault Rifle Launcher Mini Grenade Launcher Impact Weapon Heavy Mace Special Melee Weapon Datajack Build | -11 -10 -9 -8 -7 -7 -7 ------- Run | Yrd Mat Mat Mat Fac Gar Fac Slots Evolved 6 | . . 2 2 2 . . Power . | . . . . . . . Propulsion 1 | . . 1 . . . . Utility 4 | . . 1 1 2 . . Weapon 1 | . . . 1 . . . Parts Attached 62 | 7 3 10 10 8 10 14 Power 6 | 1 . . 1 1 1 2 Engine 4 | 1 . . . 1 1 1 Core 2 | . . . 1 . . 1 Reactor . | . . . . . . . Propulsion 19 | 3 1 4 3 2 3 3 Treads 11 | . . 4 3 2 2 . Leg 6 | 2 1 . . . . 3 Wheel 2 | 1 . . . . 1 . Hover . | . . . . . . . Flight . | . . . . . . . Utility 17 | 1 2 2 2 4 3 3 Device . | . . . . . . . Storage 4 | 1 1 1 . . . 1 Processor 3 | . 1 . 1 1 . . Hackware 1 | . . . . . . 1 Protection 9 | . . 1 1 3 3 1 Artifact . | . . . . . . . Weapon 20 | 2 . 4 4 1 3 6 Energy Gun 2 | . . 1 1 . . . Energy Cannon . | . . . . . . . Ballistic Gun 13 | 2 . 2 2 1 3 3 Ballistic Cannon . | . . . . . . . Launcher 3 | . . 1 1 . . 1 Special Weapon . | . . . . . . . Impact Weapon 1 | . . . . . . 1 Slashing Weapon . | . . . . . . . Piercing Weapon . | . . . . . . . Special Melee Weapon 1 | . . . . . . 1 Unidentified Prototypes . | . . . . . . . Parts Lost 35 | . . 2 8 1 7 17 Power 2 | . . . . 1 . 1 Propulsion 13 | . . 1 4 . 3 5 Utility 9 | . . . 2 . 2 5 Weapon 11 | . . 1 2 . 2 6 Highest Loss Streak 6 | . . 2 4 1 6 6 To Critical Strikes . | . . . . . . . Average Backups 16 | 2 7 13 22 16 19 17 Power 2 | . 1 1 2 1 2 4 Propulsion 2 | 1 3 1 3 2 3 1 Utility 7 | . 1 4 11 9 9 7 Weapon 3 | . 1 4 3 2 2 2 Tool/Special . | . . . . . . . Unused Backups 17 | . . . 1 . . 16 Power 4 | . . . . . . 4 Propulsion 2 | . . . . . . 2 Utility 8 | . . . . . . 8 Weapon 2 | . . . 1 . . 1 Tool/Special 1 | . . . . . . 1 Average Slot Usage (%) 92 | . 98 98 97 98 97 82 Engine 7 | . 13 11 4 2 7 4 Core 1 | . . . 4 4 . 2 Treads 15 | . . 22 26 22 19 5 Leg 6 | . 27 5 . . . 7 Wheel 1 | . . 4 . . 1 1 Storage 9 | . 14 12 9 7 7 7 Processor 13 | . 13 11 16 14 15 15 Hackware 2 | . . . . . . 6 Protection 11 | . . 8 8 22 23 11 Energy Gun 2 | . . . 9 7 3 . Ballistic Gun 17 | . 27 19 17 14 15 14 Peak Build Rating 42 | 6 8 14 22 23 29 42 Average Rating 20 | 4 7 11 19 21 26 31 On Entrance 13 | . 6 8 14 16 21 29 Avg Prop Armor Cover (%) 10 | . . 10 . . 13 11 Naked Turns . | . . . . . . . Heaviest Build 106 | 11 16 96 97 96 104 106 Greatest Support 60 | 20 20 60 60 60 60 32 Greatest Overweight (x) 30 | 3 . 9 4 1 10 30 Average Overweight (x) 3 | . . 4 1 1 3 7 Largest Inventory Capacity 25 | 8 10 25 25 25 25 25 Average Capacity 23 | 7 8 24 25 25 25 25 Most Carried 25 | 5 10 20 25 21 22 20 Average Carried 16 | 2 7 13 22 15 19 17 Final Capacity 25 | 8 10 25 25 25 25 25 Final Carried 22 | 5 10 20 22 16 18 16 Class Distribution -------------------- 54% | Mutant 31% | Scavenger-Gunner 8% | Gunner 5% | Scavenger-Mutant Dominant Class ---------------- Mutant | -10/Materials Mutant | -9/Materials Gunner | -8/Materials Scavenger-Gunner | -7/Factory Scavenger-Gunner | -7/Garrison Mutant | -7/Factory Resources | -11 -10 -9 -8 -7 -7 -7 ----------- Run | Yrd Mat Mat Mat Fac Gar Fac Matter Collected 2196 | 248 42 622 481 87 204 512 Remotely . | . . . . . . . Salvage Created 3285 | . 88 1065 873 47 468 744 Parts 221 | . 5 91 51 3 29 42 Haulers Intercepted 1 | . . 1 . . . . Recyclers Shooed 6 | . . . 2 . . 4 Parts Field Recycled . | . . . . . . . Retrieved Matter . | . . . . . . . Parts Self-Destructed . | . . . . . . . Prevented . | . . . . . . . Parts Restored . | . . . . . . . Kills | -11 -10 -9 -8 -7 -7 -7 ------- Run | Yrd Mat Mat Mat Fac Gar Fac Combat Hostiles Destroyed 68 | . 2 26 14 1 12 13 Guns 51 | . 2 19 11 1 7 11 AOE 17 | . . 7 3 . 5 2 Classes Destroyed 13 | . 1 8 1 . 1 2 Worker 11 | . . 5 3 . . 3 Builder 4 | . . 2 1 . . 1 Tunneler 1 | . . . . . . 1 Hauler 1 | . . 1 . . . . Recycler 5 | . . 1 2 . . 2 Watcher 5 | . . 2 2 . . 1 Swarmer 15 | . . 7 3 . 4 1 Grunt 30 | . 2 13 6 . 4 5 Brawler 1 | . . 1 . . . . Duelist 2 | . . . . . 2 . Sentry 11 | . . 5 3 . 1 2 Hunter 6 | . . . 2 1 1 2 Programmer 3 | . . . . . . 3 Best Kill Streak 7 | . 1 7 4 1 5 4 Combat Bots Only 5 | . 1 5 3 1 5 2 Max Kills in Single Turn 4 | . 1 4 2 1 2 2 Gunslinging 1 | . . 1 . . . . Exploded 3 | . . 3 1 . 2 1 Melee . | . . . . . . . Uniques/NPCs Destroyed . | . . . . . . . Combat | -11 -10 -9 -8 -7 -7 -7 -------- Run | Yrd Mat Mat Mat Fac Gar Fac Hostile Shots Fired 579 | . 13 110 111 6 103 236 Missed 186 | . 3 32 28 3 42 78 Hits 393 | . 10 78 83 3 61 158 Melee 18 | . . . . . 10 8 Projectile 375 | . 10 78 83 3 51 150 Critical Strikes 17 | . 1 2 2 1 3 8 Actively Blocked 3 | . . . . . 1 2 Damage Taken 5507 | . 134 959 1188 49 1112 2065 Core 1123 | . 45 223 120 . 198 537 Absorbed by Shields . | . . . . . . . Redirected to Shielding 151 | . . . . . 97 54 Core Remaining (%) 76 | 100 82 44 78 . . . Volleys Fired 241 | . 8 74 64 3 40 52 Largest 3 | . 2 2 3 3 3 3 Hottest 103 | . 40 88 93 93 103 86 Shots Fired 519 | . 16 139 167 9 84 104 Gun 495 | . 16 126 163 9 78 103 Cannon . | . . . . . . . Launcher 24 | . . 13 4 . 6 1 Special . | . . . . . . . Kinetic 419 | . 16 120 112 6 62 103 Thermal 76 | . . 6 51 3 16 . Explosive 24 | . . 13 4 . 6 1 Electromagnetic . | . . . . . . . Robot Hit Streak 22 | . 9 11 20 12 22 9 Robot Miss Streak 9 | . 1 4 7 . 2 9 Penetration Max 1 | . . . . . . 1 Secondary Targets 6 | . . 3 2 . . 1 Max Gunslinging Chain 1 | . . 1 1 . . 1 Shots Hit Robots 347 | . 12 78 107 8 55 87 Core Hits 258 | . 6 71 49 3 35 94 Critical Kills 2 | . . 2 . . . . Critical Parts Destroyed . | . . . . . . . Critical Strikes 3 | . . 2 1 . . . Burn 1 | . . . 1 . . . Destroy 2 | . . 2 . . . . Melee Attacks 5 | . . . . . . 5 Impact . | . . . . . . . Slashing . | . . . . . . . Piercing . | . . . . . . . Sneak Attacks 5 | . . . . . . 5 Combat Hostiles . | . . . . . . . Follow-up Attacks . | . . . . . . . Damage Inflicted 6204 | . 133 1693 1581 77 1128 1592 Guns 4731 | . 133 1033 1344 77 729 1415 Cannons . | . . . . . . . Explosions 1430 | . . 638 232 . 399 161 Melee . | . . . . . . . Ramming 43 | . . 22 5 . . 16 Kinetic 4134 | . 133 1033 908 40 605 1415 Thermal 723 | . . . 436 37 124 126 Explosive 1304 | . . 638 232 . 399 35 Electromagnetic . | . . . . . . . Impact . | . . . . . . . Slashing . | . . . . . . . Piercing . | . . . . . . . Highest Corruption 1 | . . . . . . 1 Average Corruption 1 | . . . . . . 1 Corruption Purged . | . . . . . . . Corruption Blocked . | . . . . . . . Effects 2 | . . . . . . 2 Matter Fused 1 | . . . . . . 1 Data Loss (minor) 1 | . . . . . . 1 Overload Shots . | . . . . . . . Overflow Damage 95 | . . 15 11 . 11 58 Projectiles . | . . . . . . . Explosions 95 | . . 15 11 . 11 58 Melee . | . . . . . . . Knockbacks 1 | . . . . . . 1 Impact 1 | . . . . . . 1 Kinetic . | . . . . . . . Secondary . | . . . . . . . Self-Inflicted Damage 249 | . . 92 . . 86 71 Shots 7 | . . 3 . . 3 1 Rammed 4 | . . 2 1 . . 1 Targets Rammed 7 | . . 2 1 . . 4 Kicked 3 | . . . . . . 3 Crushed . | . . . . . . . Highest Temperature 347 | . 9 222 347 21 72 27 Average Temperature 57 | . 7 39 85 13 24 9 Received Heat Transfer 1713 | . 93 390 531 . 252 447 Effects 3 | . . . 3 . . . Energy Bleed 2 | . . . 2 . . . Matter Decay 1 | . . . 1 . . . Siege Activations . | . . . . . . . Martial Activations . | . . . . . . . Shielding Activations . | . . . . . . . Robots Disrupted . | . . . . . . . Combat Hostiles . | . . . . . . . Robots Corrupted . | . . . . . . . Combat Hostiles . | . . . . . . . Parts Fried . | . . . . . . . Impact Corruptions . | . . . . . . . Robots Melted . | . . . . . . . Combat Hostiles . | . . . . . . . Parts Melted 3 | . . . 3 . . . Heat Transferred 1900 | . . . 1369 111 370 50 Parts Sabotaged . | . . . . . . . Parts Stolen . | . . . . . . . Parts Stripped . | . . . . . . . Power Chain Reactions . | . . . . . . . Alert | -11 -10 -9 -8 -7 -7 -7 ------- Run | Yrd Mat Mat Mat Fac Gar Fac Maximum Alert Level 2 | . . 2 1 . 1 1 Low Security (%) 74 | 100 100 52 60 100 44 96 Level 1 21 | . . 33 39 . 55 3 Level 2 3 | . . 14 . . . . Level 3 . | . . . . . . . Level 4 . | . . . . . . . Level 5 . | . . . . . . . High Security . | . . . . . . . Max Security . | . . . . . . . Peak Influence 429 | . 40 429 278 91 324 253 Initial 176 | . . . 176 91 9 164 Average 111 | . 5 163 161 28 210 60 Influence Increases 2276 | . 55 803 472 44 375 527 Destroy 0b10 Robot/C 1360 | . 40 520 280 20 240 260 Destroy 0b10 Robot/NC 135 | . . 55 40 . . 40 Destroy Leader 362 | . 10 136 84 10 20 102 Successful Hack 63 | . 5 7 . 14 . 37 Disable Machine 90 | . . 30 15 . . 45 Anti-Garrison Action 100 | . . . . . 100 . Destroy Structure 136 | . . 55 38 . 15 28 Lose Combat Pursuer 30 | . . . 15 . . 15 Influence Decreases 2086 | . 55 384 691 230 75 651 Entered New Map 507 | . . . 243 109 5 150 Time Decay 1265 | . 55 364 368 120 . 358 Lost Part 314 | . . 20 80 1 70 143 Squads Dispatched 16 | . . 6 5 1 . 4 Investigation 3 | . . . 2 1 . . Extermination 3 | . . . . . . 3 Reinforcement 9 | . . 5 3 . . 1 Assault 1 | . . 1 . . . . Garrison . | . . . . . . . Intercept . | . . . . . . . Searches Triggered . | . . . . . . . Construction Impeded 4 | . . 2 2 . . . Haulers Reinforced . | . . . . . . . Active Scanning Responses . | . . . . . . . Cargo Convoy Interrupts 1 | . . . . . . 1 Stealth | -11 -10 -9 -8 -7 -7 -7 --------- Run | Yrd Mat Mat Mat Fac Gar Fac Distress Signals 6 | . . 3 1 . . 2 Communications Jammed . | . . . . . . . Distress Signals . | . . . . . . . Times Spotted 97 | . 2 34 26 1 13 21 Peak Tracking Total 6 | . 2 4 4 1 4 6 Tactical Retreats 2 | . . . 1 . . 1 Traps | -11 -10 -9 -8 -7 -7 -7 ------- Run | Yrd Mat Mat Mat Fac Gar Fac Traps Triggered 2 | . 1 . 1 . . . Indirectly . | . . . . . . . Trap Hack Attempts . | . . . . . . . Triggered . | . . . . . . . Disarmed . | . . . . . . . Reprogrammed . | . . . . . . . Reused . | . . . . . . . Traps Extracted . | . . . . . . . Installed . | . . . . . . . Triggered . | . . . . . . . Machines | -11 -10 -9 -8 -7 -7 -7 ---------- Run | Yrd Mat Mat Mat Fac Gar Fac Machines Disabled 7 | . . 2 1 . 1 3 Max in Single Turn 3 | . . 1 1 . 1 3 Garrison Access 2 | . . . . . . 2 Garrison Relay 1 | . . . . . 1 . Machines Repaired . | . . . . . . . Machines Dismantled . | . . . . . . . Machines Sabotaged . | . . . . . . . Overloaded Fab Kills . | . . . . . . . Hacking | -11 -10 -9 -8 -7 -7 -7 --------- Run | Yrd Mat Mat Mat Fac Gar Fac Machines Accessed 19 | . 2 5 3 2 1 6 Terminals 13 | . 2 4 2 1 1 3 Fabricators 1 | . . . . . . 1 Repair Stations . | . . . . . . . Recycling Units . | . . . . . . . Scanalyzers 2 | . . 1 1 . . . Garrison Access 3 | . . . . 1 . 2 Total Hacks 40 | . 7 10 6 4 2 11 Successful 22 | . 3 7 3 1 . 8 Failed 18 | . 4 3 3 3 2 3 Catastrophic 5 | . 1 . 1 2 1 . Database Lockouts . | . . . . . . . Manual 25 | . 7 9 5 1 . 3 Terminals 30 | . 7 9 5 1 2 6 Fabricators 3 | . . . . . . 3 Repair Stations . | . . . . . . . Recycling Units . | . . . . . . . Scanalyzers 2 | . . 1 1 . . . Garrison Access 5 | . . . . 3 . 2 Terminal Hacks 3 | . . . . . . 3 Record 1 | . . . . . . 1 Branch Access Points 1 | . . . . . . 1 Locate Traps 1 | . . . . . . 1 Fabricator Hacks 1 | . . . . . . 1 Build 1 | . . . . . . 1 Repair Station Hacks . | . . . . . . . Recycling Unit Hacks . | . . . . . . . Scanalyzer 2 | . . 1 1 . . . Retrieve Study 2 | . . 1 1 . . . Garrison Access Hacks 3 | . . . . 1 . 2 Unlock Access 1 | . . . . 1 . . Seal Access 2 | . . . . . . 2 Unauthorized Hacks 13 | . 3 6 2 . . 2 Terminals 13 | . 3 6 2 . . 2 Botnet 7 | . 2 3 1 . . 1 Skim 6 | . 1 3 1 . . 1 Fabricators . | . . . . . . . Repair Stations . | . . . . . . . Recycling Units . | . . . . . . . Scanalyzers . | . . . . . . . Garrison Access . | . . . . . . . Data Cores Recovered . | . . . . . . . Used . | . . . . . . . Hacking Detections 13 | . 2 3 2 2 1 3 Full Trace Events 5 | . 1 . 2 1 1 . Feedback Events . | . . . . . . . Feedback Blocked . | . . . . . . . Robot Schematics Acquired . | . . . . . . . Robots Built . | . . . . . . . Authchips . | . . . . . . . Time 134 | . . . . . . 134 Total Robot Build Rating . | . . . . . . . Part Schematics Acquired . | . . . . . . . Parts Built . | . . . . . . . Authchips . | . . . . . . . Time . | . . . . . . . Total Part Build Rating . | . . . . . . . Part Studies Acquired 2 | . . 1 1 . . . Parts Repaired . | . . . . . . . Time . | . . . . . . . Parts Recycled . | . . . . . . . Recycled Matter . | . . . . . . . Retrieved Matter . | . . . . . . . Retrieved Components . | . . . . . . . Parts Scanalyzed . | . . . . . . . Part Schematics Acquired . | . . . . . . . Parts Damaged . | . . . . . . . Bothacking | -11 -10 -9 -8 -7 -7 -7 ------------ Run | Yrd Mat Mat Mat Fac Gar Fac Used RIF Installer 1 | . . . . . 1 . Robots Hacked 1 | . . . . . . 1 Non-combat 1 | . . . . . . 1 Combat . | . . . . . . . Robot Hacks Applied 3 | . . . . . . 3 parse_system 1 | . . . . . . 1 no_distress 1 | . . . . . . 1 find_terminals 1 | . . . . . . 1 Relay Couplers Released 3 | . . . . . 3 . Machine Destruction 3 | . . . . . 3 . Attached 1 | . . . . . . 1 Fabnet Peak Effective % . | . . . . . . . Robots Rewired . | . . . . . . . Allies Hacked . | . . . . . . . Hacks Repelled . | . . . . . . . Allies | -11 -10 -9 -8 -7 -7 -7 -------- Run | Yrd Mat Mat Mat Fac Gar Fac Total Allies . | . . . . . . . Largest Group . | . . . . . . . Highest-Rated Group . | . . . . . . . Highest-Rated Ally . | . . . . . . . Total Orders . | . . . . . . . Ally Attacks . | . . . . . . . Total Damage . | . . . . . . . Kills . | . . . . . . . Allies Corrupted . | . . . . . . . Allies Melted . | . . . . . . . Intel | -11 -10 -9 -8 -7 -7 -7 ------- Run | Yrd Mat Mat Mat Fac Gar Fac Active Infowar (turns) . | . . . . . . . Robot Analysis Total . | . . . . . . . Derelict Logs Recovered . | . . . . . . . Drone Launches . | . . . . . . . Drone Recoveries . | . . . . . . . Exploration | -11 -10 -9 -8 -7 -7 -7 ------------- Run | Yrd Mat Mat Mat Fac Gar Fac Turns Passed 6003 | 88 474 1627 855 340 647 1972 Spaces Moved 2082 | 59 364 551 312 160 239 397 Core 54 | 18 . . . . . 36 Treads 970 | . . 310 312 160 188 . Legs 685 | 41 364 15 . . . 265 Wheels 373 | . . 226 . . 51 96 Hover . | . . . . . . . Flight . | . . . . . . . Fastest Speed 50 | 50 120 120 200 200 200 205 Average Speed 242 | 124 120 250 200 200 216 426 Slowest Speed 1550 | 200 120 320 320 200 360 1550 Overloaded Moves . | . . . . . . . Propulsion Burnouts . | . . . . . . . Robots Hopped . | . . . . . . . Potential Cave-ins . | . . . . . . . Cave-ins Triggered . | . . . . . . . Exploration Rate (%) 27 | 5 53 53 33 4 34 13 Regions Visited 6 Branch Regions . Pre-discovered Areas . | . . . . . . . Known Exits Taken 1 | . . . . 1 . . Unknown Exits Taken 4 | 1 1 1 1 . . . Scrap Searched . | . . . . . . . Spaces Dug . | . . . . . . . Terrain Destroyed 135 | . . 55 39 . 12 29 Melee . | . . . . . . . Projectile . | . . . . . . . AOE 135 | . . 55 39 . 12 29 Terrain Rammed . | . . . . . . . Walls Destroyed . | . . . . . . . Machines Disabled . | . . . . . . . Actions | -11 -10 -9 -8 -7 -7 -7 --------- Run | Yrd Mat Mat Mat Fac Gar Fac Total 2567 | 70 385 664 418 173 302 555 Wait 80 | . 3 . 12 . . 65 Move 2077 | 58 363 550 311 160 238 397 Hop . | . . . . . . . Pick Up 54 | 4 4 16 12 1 9 8 Fast Attach 21 | 7 4 3 1 1 1 4 Attach 31 | . . 3 5 7 8 8 Detach 1 | 1 . . . . . . Swap 24 | . 2 9 5 . 3 5 Drop 26 | . 1 7 7 1 3 7 Fire 241 | . 8 74 64 3 40 52 Melee 5 | . . . . . . 5 Ram 3 | . . 2 . . . 1 Kick 3 | . . . . . . 3 Crush 1 | . . . 1 . . . Escape Stasis . | . . . . . . . Rewire . | . . . . . . . Trap . | . . . . . . . Miscellaneous . | . . . . . . . Route ------- -11/Scrapyard -10/Materials -9/Materials -8/Materials -7/Factory -7/Garrison -7/Factory (discovered 4 exits: Sto x2 / *Low x2) History --------- Turn | Location | Event 30 | -11/Scrapyard | Discovered new exit (range 14) 89 | -11/Scrapyard | Entered Materials 305 | -10/Materials | Build established: Mutant 518 | -10/Materials | Discovered new exit (range 8) 563 | -10/Materials | Entered another Materials area 563 | -9/Materials | Evolved 2 slots: Propulsion x1, Utility x1 1803 | -9/Materials | Discovered new exit (range 15) 2110 | -9/Materials | Core integrity fell below 50% 2163 | -9/Materials | First assault squad dispatched 2190 | -9/Materials | Entered another Materials area 2190 | -8/Materials | Evolved 2 slots: Utility x1, Weapon x1 2508 | -8/Materials | Build established: Gunner 2957 | -8/Materials | Discovered new exit (range 16) 3013 | -8/Materials | Build established: Scavenger-Gunner 3045 | -8/Materials | Entered Factory 3045 | -7/Factory | Evolved 2 slots: Utility x2 3076 | -7/Factory | Lost 4 parts (2n1u1w) 3385 | -7/Factory | Identified exit to Garrison 3385 | -7/Factory | Entered Garrison 3423 | -7/Garrison | Triggered checkpoint 3578 | -7/Garrison | Garrison Relay disabled 3658 | -7/Garrison | Installed Relay Interface Framework 3847 | -7/Garrison | Lost 6 parts (3n2u1w) 3966 | -7/Garrison | Discovered new exit (range 11) 4032 | -7/Garrison | Entered Factory 4341 | -7/Factory | Lost 6 parts (2n2u2w) 4587 | -7/Factory | Build established: Mutant 5288 | -7/Factory | Build established: Scavenger-Gunner 5446 | -7/Factory | Identified exit to Storage 5446 | -7/Factory | Identified exit to Lower Caves 5763 | -7/Factory | Cargo convoy interrupted 5794 | -7/Factory | Core integrity fell below 50% 5876 | -7/Factory | Build established: Mutant 5999 | -7/Factory | Core integrity fell below 20% 6004 | -7/Factory | Destroyed by L-41 Fighter with Axe Last Messages --------------- 05972_ R-06 Scavenger collects Target Analyzer. 05974_ R-06 Scavenger destroyed. 05974_ S-27 Virus destroyed. 05976_ Flak Gun destroyed. 05978_ R-06 Scavenger collects Wheel+. 05981_ Imp. Deuterium Engine destroyed. 05984_ R-06 Scavenger collects Seismic Detector. 05985_ Core Shielding destroyed. 05986_ Carbon-fiber Leg destroyed. 05986_ S-27 Virus destroyed. 05987_ Critical hit (Burn: +37). 05987_ Mni. Grenade Launcher severed. 05992_ Titanium Leg severed. 05994_ U-05 Engineer lays Concrete. 05995_ R-06 Scavenger collects Com. Wheel. 05997_ U-05 Engineer lays Concrete. 06000_ Relay Coupler [NC] severed. 06000_ R-06 Scavenger collects Lgt. Nuclear Core. 06001_ U-05 Engineer lays Concrete. 06004_ Core Analyzer destroyed. Map ----- +----------------------------------------------------+ | ???????????????????????????????????????????????? | | ???????????????????????????????????????????????? | | ???????????????????????????????????????????????? | | ???????????????????????????????????????????????? | | ??????????????????????????????????????????????? | | ??????????????????????????????????????????????? | | ??????????????????????????????????????????????? | | ??????????????????????????????????????????????? | | ?????????????????????????????????????????????????? | | ??????????????????????????????????? ???????????? | | ?????????????????????????????????? ???????????? | | ?????????????????????????????????? ???????????? | | ?????????????????????????????????? ???????????? | | ?????????????????????????????????? ???????????? | | ?????????????????????????????????? "???? ????? | | ?????????????????????????##???????# ""???! ???# | | ????????????????????????? ?????# ""??? ??# | | ????????????????????????# """?????? ""???? ### | | ????????????????????????# """?????? ""????? | | ????????????????????????# """?????? ????? | | ???????????? ??????????# "???????? ?????? | | ???????????? ??????#+?# "???????? ???????#### | | ???????????" ?????# ?#] ?????????# #??????????# | | ??????????? ????# ?# k?????????# #??????????# | | ???????????" ##### ##/#???????### ###########? | | ???????????" @#???????# #/!!! ## | | ??????????"" g l#???##### " # !! % + | | ????????? ]##### "T / !!! ## | | ??????????"" ## ########## | | ??????????"" ## #??????# | | ??????????"" s ### ##??????# [ | | ???????? r% #?# #???????# | | ???????? % % #?# #???????# | | ????????!= # T#######?# #???????# | | ?????????= ####???????# ^ #???????# ! | | ????????? #??????????# ^#???????# | | ?????????? #??????????#^^ #???????### | | ?????????? #??????????#^ +?????????? | | ?????????? u #??????????#^ #?????????? | | ??????????? %%#??????????# #?????????? | | ??????????? ???????????##/##?????????? | | ???????????? ????????????? ???????????? | | ???????????? ?????????????????????????? | | ????????????? ?????????????????????????? | | ??????????????? ?????????????????????????? | | ????????????????? ? ?????????????????????????? | | ????????????????????? ?????????????????????????? | | ?????????????????????????????????????????????????? | | ?????????????????????????????????????????????????? | | ?????????????????????????????????????????????????? | +----------------------------------------------------+ Best States ------------- Heat Dissipation 34 Energy Generation 16 Energy Capacity 290 Matter Stores 300 Matter Capacity 300 Sight Range 16 Terrain Scan Density 10 Armor Coverage 150 Core Shielding 20 Weapon Shielding 33 Evasion (%) 55 Targeting Accuracy 6 Core Analysis 6 Recoil Reduction 3 Relay Coupler Types 1 Relay Coupler Value 22 Item Schematics ----------------- None Robot Schematics ------------------ None Fabricated ------------ Nothing Repaired ---------- Nothing Studied --------- Lgt. Treads | -9/Materials | Hacked Wheel | -8/Materials | Hacked Alien Tech Used ----------------- None Achievements -------------- Mindtrick Challenges ------------ None Game ------ Seed MassLaunchNullifier Manual? 0 Play Time 00:40:04 Cumulative 37.4 hours Start 2026.09.15 @ 07:21:54 End 2026.09.15 @ 08:04:45 Sessions 1 Manual Loads 0 Difficulty Rogue Special Mode None Game No. 58 Rogue 53 Adventurer 1 Explorer 4 Win Type - Total 1 Types 1/0/0/0/0/0/0/0/0/0 Lore% 12 Gallery% 26 Achievement% 24 Wizard Run 0 Options --------- Layout 0 ASCII 0 Keyboard 0 Movement Arrows Keybinds 0 Fullscreen 1 Font 18/SmallcapsGlow Map View 76x50 Zoom Use 0% Tactical HUD 1 Map Filters NONE Filters NONE Steam 1 RUN: c56cea8f-55c6-4a1c-bf56-1227f132d188